[Event "Early-Titled-Tuesday-Blitz-September-05-2023"]
[Site "Chess.com"]
[Date "2023.09.05"]
[Round "11"]
[White "chess123456s"]
[Black "GeorgiosSouleidis"]
[Result "1-0"]
[WhiteElo "2659"]
[BlackElo "2543"]
[TimeControl "180+1"]
[EndTime "10:06:25 PDT"]
[Termination "chess123456s won by resignation"]

1. d4 {[%clk 0:03:00.9]} 1... Nf6 {[%clk 0:02:59.9]} 2. Nc3 {[%clk 0:03:01.4]}
2... d5 {[%clk 0:02:59.7]} 3. Bf4 {[%clk 0:03:01.6]} 3... c5 {[%clk 0:03:00.2]}
4. e4 {[%clk 0:03:01.6]} 4... Nxe4 {[%clk 0:02:56.6]} 5. Nxe4 {[%clk 0:03:01.7]}
5... dxe4 {[%clk 0:02:57.1]} 6. dxc5 {[%clk 0:03:02.4]} 6... Qa5+ {[%clk
0:02:57.6]} 7. c3 {[%clk 0:03:03]} 7... Qxc5 {[%clk 0:02:58]} 8. Qa4+ {[%clk
0:03:03.2]} 8... Bd7 {[%clk 0:02:56.6]} 9. Qxe4 {[%clk 0:03:03.2]} 9... Bc6
{[%clk 0:02:56.1]} 10. Qc2 {[%clk 0:03:03.4]} 10... e5 {[%clk 0:02:55.5]} 11.
Be3 {[%clk 0:03:03.1]} 11... Qa5 {[%clk 0:02:54.6]} 12. Nf3 {[%clk 0:03:00.1]}
12... Be7 {[%clk 0:02:52.9]} 13. Be2 {[%clk 0:02:59.7]} 13... O-O {[%clk
0:02:52.8]} 14. O-O {[%clk 0:03:00.1]} 14... Nd7 {[%clk 0:02:52]} 15. Rfd1
{[%clk 0:02:57]} 15... Qc7 {[%clk 0:02:47.7]} 16. c4 {[%clk 0:02:48.8]} 16...
Rad8 {[%clk 0:02:39]} 17. a3 {[%clk 0:02:43.6]} 17... Bc5 {[%clk 0:01:52.1]} 18.
Bg5 {[%clk 0:02:17.8]} 18... f6 {[%clk 0:01:45]} 19. Bh4 {[%clk 0:02:06.5]}
19... Rfe8 {[%clk 0:01:41.8]} 20. Bg3 {[%clk 0:02:05.5]} 20... Nf8 {[%clk
0:01:39.5]} 21. b4 {[%clk 0:02:04.1]} 21... Be7 {[%clk 0:01:36.2]} 22. c5 {[%clk
0:02:00.7]} 22... Rxd1+ {[%clk 0:01:31.4]} 23. Rxd1 {[%clk 0:02:00.2]} 23... Rd8
{[%clk 0:01:31.4]} 24. h3 {[%clk 0:01:41.3]} 24... a6 {[%clk 0:01:27.6]} 25.
Qc4+ {[%clk 0:01:39.2]} 25... Kh8 {[%clk 0:01:24.5]} 26. Qf7 {[%clk 0:01:30.1]}
26... Rxd1+ {[%clk 0:01:23.9]} 27. Bxd1 {[%clk 0:01:31]} 27... Qd8 {[%clk
0:01:00.2]} 28. Bb3 {[%clk 0:01:27.8]} 28... Ng6 {[%clk 0:01:00.4]} 29. h4
{[%clk 0:01:14]} 29... Qe8 {[%clk 0:00:56.3]} 30. Qxe8+ {[%clk 0:01:01.2]} 30...
Bxe8 {[%clk 0:00:56.2]} 31. Bd5 {[%clk 0:01:00.4]} 31... Bc6 {[%clk 0:00:54.2]}
32. Bxc6 {[%clk 0:01:00.7]} 32... bxc6 {[%clk 0:00:55.1]} 33. h5 {[%clk
0:01:00.5]} 33... Nf8 {[%clk 0:00:55.3]} 34. Nd2 {[%clk 0:00:58.1]} 34... Ne6
{[%clk 0:00:50.2]} 35. Nb3 {[%clk 0:00:57.9]} 35... Kg8 {[%clk 0:00:46.9]} 36.
Kf1 {[%clk 0:00:54.6]} 36... Kf7 {[%clk 0:00:44.1]} 37. Ke2 {[%clk 0:00:55.2]}
37... Bd8 {[%clk 0:00:44.6]} 38. Kd3 {[%clk 0:00:53.3]} 38... Bc7 {[%clk
0:00:41.1]} 39. Kc4 {[%clk 0:00:52.1]} 39... f5 {[%clk 0:00:40.2]} 40. f3 {[%clk
0:00:50.6]} 40... g5 {[%clk 0:00:34.6]} 41. hxg6+ {[%clk 0:00:49.2]} 41... hxg6
{[%clk 0:00:35.5]} 42. a4 {[%clk 0:00:48.2]} 42... g5 {[%clk 0:00:28.7]} 43. b5
{[%clk 0:00:42.7]} 43... axb5+ {[%clk 0:00:29.6]} 44. axb5 {[%clk 0:00:43.6]}
44... cxb5+ {[%clk 0:00:30.4]} 45. Kxb5 {[%clk 0:00:44.5]} 45... f4 {[%clk
0:00:30.9]} 46. Bf2 {[%clk 0:00:42.8]} 46... Nd8 {[%clk 0:00:28.7]} 47. Nd2
{[%clk 0:00:34.1]} 47... Ke6 {[%clk 0:00:27.3]} 48. Ne4 {[%clk 0:00:34.4]} 48...
Kf5 {[%clk 0:00:24]} 49. c6 {[%clk 0:00:32.4]} 49... g4 {[%clk 0:00:23.7]} 50.
Bb6 {[%clk 0:00:31.7]} 50... Ne6 {[%clk 0:00:22.4]} 51. Bxc7 {[%clk 0:00:30.8]}
51... Nxc7+ {[%clk 0:00:23.3]} 52. Kb6 {[%clk 0:00:30.9]} 52... Nd5+ {[%clk
0:00:23.8]} 53. Kc5 {[%clk 0:00:29.5]} 53... Nc7 {[%clk 0:00:23.8]} 54. Kd6
{[%clk 0:00:29.8]} 54... Nb5+ {[%clk 0:00:24]} 55. Kd7 {[%clk 0:00:30.1]} 55...
gxf3 {[%clk 0:00:19.2]} 56. gxf3 {[%clk 0:00:30.3]} 56... Kg6 {[%clk 0:00:15.1]}
57. Nd6 {[%clk 0:00:27.9]} 57... Na7 {[%clk 0:00:14.1]} 58. c7 {[%clk
0:00:28.2]} 58... Kh5 {[%clk 0:00:07]} 59. Nb5 {[%clk 0:00:27.9]} 59... Nxb5
{[%clk 0:00:05.3]} 60. c8=Q {[%clk 0:00:28.2]} 60... Nd4 {[%clk 0:00:06.2]} 61.
Qh8+ {[%clk 0:00:27]} 61... Kg6 {[%clk 0:00:06.7]} 62. Qxe5 {[%clk 0:00:26.1]}
62... Nxf3 {[%clk 0:00:07.3]} 63. Qe4+ {[%clk 0:00:26.2]} 1-0

[Event "Early-Titled-Tuesday-Blitz-September-05-2023"]
[Site "Chess.com"]
[Date "2023.09.05"]
[Round "11"]
[White "moro182"]
[Black "Ali_rastbod"]
[Result "1-0"]
[WhiteElo "2864"]
[BlackElo "2713"]
[TimeControl "180+1"]
[EndTime "10:06:31 PDT"]
[Termination "moro182 won on time"]

1. d4 {[%clk 0:03:00]} 1... Nf6 {[%clk 0:03:00]} 2. Bf4 {[%clk 0:02:59.9]} 2...
c5 {[%clk 0:02:58.1]} 3. e3 {[%clk 0:03:00]} 3... Qb6 {[%clk 0:02:58.5]} 4. Na3
{[%clk 0:02:59.8]} 4... d6 {[%clk 0:02:56.7]} 5. Nc4 {[%clk 0:02:58.7]} 5... Qc7
{[%clk 0:02:56.5]} 6. dxc5 {[%clk 0:02:56.4]} 6... Qxc5 {[%clk 0:02:56.1]} 7.
Nf3 {[%clk 0:02:56]} 7... Be6 {[%clk 0:02:48.6]} 8. Ncd2 {[%clk 0:02:52.8]} 8...
h6 {[%clk 0:02:40]} 9. c3 {[%clk 0:02:50.3]} 9... g5 {[%clk 0:02:30.8]} 10. Bg3
{[%clk 0:02:50.2]} 10... Bg7 {[%clk 0:02:31.5]} 11. Nd4 {[%clk 0:02:50.4]} 11...
Bd7 {[%clk 0:02:30]} 12. Bd3 {[%clk 0:02:50.2]} 12... Nc6 {[%clk 0:02:28.6]} 13.
O-O {[%clk 0:02:47]} 13... O-O {[%clk 0:02:25.2]} 14. Rc1 {[%clk 0:02:40.8]}
14... a6 {[%clk 0:02:18.2]} 15. Bb1 {[%clk 0:02:40.8]} 15... Rac8 {[%clk
0:02:11.9]} 16. Qc2 {[%clk 0:02:32.4]} 16... Nxd4 {[%clk 0:02:08.1]} 17. exd4
{[%clk 0:02:26.3]} 17... Qa5 {[%clk 0:02:06.5]} 18. Ne4 {[%clk 0:02:25.2]} 18...
Nxe4 {[%clk 0:01:47.7]} 19. Qxe4 {[%clk 0:02:25.6]} 19... f5 {[%clk 0:01:48.4]}
20. Qxe7 {[%clk 0:02:17.9]} 20... Rf7 {[%clk 0:01:46.3]} 21. Qxd6 {[%clk
0:02:17.7]} 21... f4 {[%clk 0:01:44.5]} 22. Qg6 {[%clk 0:02:15.6]} 22... Bf5
{[%clk 0:01:39.9]} 23. Bxf5 {[%clk 0:02:12.5]} 23... Qxf5 {[%clk 0:01:40.8]} 24.
Qxf5 {[%clk 0:02:10.3]} 24... Rxf5 {[%clk 0:01:41.3]} 25. Bxf4 {[%clk
0:02:07.3]} 25... Rxf4 {[%clk 0:01:40.7]} 26. Rfe1 {[%clk 0:02:06.7]} 26... Kf7
{[%clk 0:01:40.1]} 27. f3 {[%clk 0:02:06.9]} 27... b5 {[%clk 0:01:29.3]} 28. a3
{[%clk 0:02:05.1]} 28... a5 {[%clk 0:01:29]} 29. Kf2 {[%clk 0:02:05.4]} 29... b4
{[%clk 0:01:22.4]} 30. axb4 {[%clk 0:02:04]} 30... axb4 {[%clk 0:01:22.2]} 31.
Red1 {[%clk 0:01:57.9]} 31... bxc3 {[%clk 0:01:11.8]} 32. bxc3 {[%clk
0:01:58.2]} 32... Ke6 {[%clk 0:01:08.5]} 33. g3 {[%clk 0:01:48.2]} 33... Rf7
{[%clk 0:01:08.4]} 34. c4 {[%clk 0:01:45.1]} 34... Rfc7 {[%clk 0:01:06.9]} 35.
d5+ {[%clk 0:01:34.4]} 35... Kd6 {[%clk 0:01:06.7]} 36. Rb1 {[%clk 0:01:33.4]}
36... Rxc4 {[%clk 0:00:59.9]} 37. Rb6+ {[%clk 0:01:32.4]} 37... Kc5 {[%clk
0:00:45.1]} 38. Rg6 {[%clk 0:01:29.3]} 38... Rc2+ {[%clk 0:00:44.8]} 39. Kg1
{[%clk 0:01:24.2]} 39... Bd4+ {[%clk 0:00:31.1]} 40. Kh1 {[%clk 0:01:24.3]}
40... Kxd5 {[%clk 0:00:17.6]} 41. Rxh6 {[%clk 0:01:24.4]} 41... Rf8 {[%clk
0:00:12.5]} 42. Rh5 {[%clk 0:01:18.4]} 42... Kc4 {[%clk 0:00:05.9]} 43. Rxg5
{[%clk 0:01:17.6]} 43... Rxf3 {[%clk 0:00:06.6]} 44. Rg4 {[%clk 0:01:09]} 44...
Rd3 {[%clk 0:00:06.8]} 45. Rxd3 {[%clk 0:01:08.4]} 45... Kxd3 {[%clk 0:00:07.7]}
46. Rf4 {[%clk 0:01:03.9]} 46... Be3 {[%clk 0:00:07.6]} 47. Rf7 {[%clk
0:01:03.5]} 47... Ke4 {[%clk 0:00:05]} 48. h4 {[%clk 0:01:01.3]} 48... Rb2
{[%clk 0:00:03.8]} 49. h5 {[%clk 0:00:59.5]} 49... Rc2 {[%clk 0:00:04.1]} 50. g4
{[%clk 0:00:57.1]} 50... Bf4 {[%clk 0:00:03.9]} 51. Ra7 {[%clk 0:00:41]} 51...
Kf3 {[%clk 0:00:02.6]} 52. Ra3+ {[%clk 0:00:40.9]} 52... Be3 {[%clk 0:00:03]}
53. h6 {[%clk 0:00:38.7]} 53... Rc1+ {[%clk 0:00:02.9]} 54. Kh2 {[%clk
0:00:38.8]} 54... Kf2 {[%clk 0:00:02.4]} 55. Rxe3 {[%clk 0:00:22.1]} 55... Kxe3
{[%clk 0:00:02.3]} 56. h7 {[%clk 0:00:23]} 56... Rc8 {[%clk 0:00:02.2]} 57. g5
{[%clk 0:00:23.7]} 57... Kf4 {[%clk 0:00:02.7]} 58. g6 {[%clk 0:00:24]} 58...
Rh8 {[%clk 0:00:03.5]} 59. Kg2 {[%clk 0:00:23.6]} 59... Kf5 {[%clk 0:00:02.2]}
60. g7 {[%clk 0:00:23.9]} 60... Rxh7 {[%clk 0:00:02.7]} 61. g8=Q {[%clk
0:00:24.6]} 61... Rh5 {[%clk 0:00:03.3]} 62. Qf7+ {[%clk 0:00:24.5]} 62... Kg4
{[%clk 0:00:03.5]} 63. Qe6+ {[%clk 0:00:23.8]} 63... Kg5 {[%clk 0:00:03.9]} 64.
Kg3 {[%clk 0:00:23.8]} 1-0

[Event "Early-Titled-Tuesday-Blitz-September-05-2023"]
[Site "Chess.com"]
[Date "2023.09.05"]
[Round "11"]
[White "Rosh1610"]
[Black "hakanazeri2"]
[Result "0-1"]
[WhiteElo "2458"]
[BlackElo "2580"]
[TimeControl "180+1"]
[EndTime "10:06:31 PDT"]
[Termination "hakanazeri2 won by checkmate"]

1. e4 {[%clk 0:02:10.5]} 1... c5 {[%clk 0:02:56.8]} 2. Nf3 {[%clk 0:02:09.8]}
2... Nc6 {[%clk 0:02:55.4]} 3. d4 {[%clk 0:02:09.9]} 3... cxd4 {[%clk
0:02:56.3]} 4. Nxd4 {[%clk 0:02:10.8]} 4... Nf6 {[%clk 0:02:57.1]} 5. Nc3 {[%clk
0:02:10.8]} 5... e5 {[%clk 0:02:56.4]} 6. Ndb5 {[%clk 0:02:10.9]} 6... d6 {[%clk
0:02:56.1]} 7. Bg5 {[%clk 0:02:11.5]} 7... a6 {[%clk 0:02:55.4]} 8. Na3 {[%clk
0:02:11.9]} 8... b5 {[%clk 0:02:55.4]} 9. Nd5 {[%clk 0:02:12.5]} 9... Be7 {[%clk
0:02:54.9]} 10. Bxf6 {[%clk 0:02:12.1]} 10... Bxf6 {[%clk 0:02:55.1]} 11. c3
{[%clk 0:02:12.7]} 11... Bg5 {[%clk 0:02:54.2]} 12. Bd3 {[%clk 0:02:11.5]} 12...
Be6 {[%clk 0:02:50]} 13. Nc2 {[%clk 0:02:11.1]} 13... Bxd5 {[%clk 0:02:45.2]}
14. exd5 {[%clk 0:02:12]} 14... Ne7 {[%clk 0:02:45.8]} 15. Nb4 {[%clk 0:02:11]}
15... O-O {[%clk 0:02:40.5]} 16. O-O {[%clk 0:02:01.4]} 16... f5 {[%clk
0:02:39.3]} 17. Nc6 {[%clk 0:02:00.5]} 17... Qc7 {[%clk 0:02:36.2]} 18. Nxe7+
{[%clk 0:01:57.5]} 18... Bxe7 {[%clk 0:02:34.4]} 19. Kh1 {[%clk 0:01:38.9]}
19... e4 {[%clk 0:02:33.3]} 20. Bc2 {[%clk 0:01:38.3]} 20... Rae8 {[%clk
0:02:24.9]} 21. f3 {[%clk 0:01:38.3]} 21... e3 {[%clk 0:02:18.1]} 22. f4 {[%clk
0:01:36.7]} 22... Bf6 {[%clk 0:02:12.9]} 23. Qe2 {[%clk 0:01:32.5]} 23... g6
{[%clk 0:02:11.6]} 24. Rf3 {[%clk 0:01:30.5]} 24... Qc4 {[%clk 0:02:07.9]} 25.
Re1 {[%clk 0:01:23]} 25... Qxa2 {[%clk 0:01:53.9]} 26. Bb1 {[%clk 0:00:57]}
26... Qxd5 {[%clk 0:01:33.1]} 27. Rxe3 {[%clk 0:00:57.5]} 27... Rxe3 {[%clk
0:01:28.5]} 28. Qxe3 {[%clk 0:00:58]} 28... Kg7 {[%clk 0:01:28.9]} 29. Bc2
{[%clk 0:00:53.8]} 29... Rf7 {[%clk 0:01:28.2]} 30. Rd1 {[%clk 0:00:46.8]} 30...
Qc5 {[%clk 0:01:20.7]} 31. Qd3 {[%clk 0:00:37.6]} 31... Re7 {[%clk 0:01:16.1]}
32. h3 {[%clk 0:00:35.3]} 32... Re3 {[%clk 0:01:14.8]} 33. Qd2 {[%clk
0:00:30.7]} 33... d5 {[%clk 0:01:09.1]} 34. Bb3 {[%clk 0:00:28.3]} 34... Qe7
{[%clk 0:01:04.2]} 35. Bxd5 {[%clk 0:00:27.2]} 35... Re2 {[%clk 0:01:02.2]} 36.
Qc1 {[%clk 0:00:24.4]} 36... Bh4 {[%clk 0:01:00.1]} 37. Bf3 {[%clk 0:00:23.3]}
37... Re1+ {[%clk 0:00:49.5]} 38. Rxe1 {[%clk 0:00:22.5]} 38... Bxe1 {[%clk
0:00:50.4]} 39. Qd1 {[%clk 0:00:17.3]} 39... Bg3 {[%clk 0:00:46.3]} 40. Qd4+
{[%clk 0:00:16.7]} 40... Kh6 {[%clk 0:00:45.1]} 41. Qd2 {[%clk 0:00:16.1]} 41...
Qe6 {[%clk 0:00:39.9]} 42. Kg1 {[%clk 0:00:15.5]} 42... Qa2 {[%clk 0:00:37]} 43.
Kf1 {[%clk 0:00:11.8]} 43... Qb1+ {[%clk 0:00:35.3]} 44. Ke2 {[%clk 0:00:11.4]}
44... Qg1 {[%clk 0:00:32.1]} 45. Kd3 {[%clk 0:00:11.6]} 45... Qb1+ {[%clk
0:00:30]} 46. Kd4 {[%clk 0:00:11.3]} 46... Qg1+ {[%clk 0:00:25.9]} 47. Ke5
{[%clk 0:00:10.6]} 47... Qc5+ {[%clk 0:00:23.2]} 48. Ke6 {[%clk 0:00:10.7]}
48... Qb6+ {[%clk 0:00:18.3]} 49. Kd7 {[%clk 0:00:11]} 49... Bh4 {[%clk
0:00:16.8]} 50. Ke8 {[%clk 0:00:09.2]} 50... Qe6+ {[%clk 0:00:15.4]} 51. Kf8
{[%clk 0:00:09.5]} 51... Be7+ {[%clk 0:00:11.1]} 52. Ke8 {[%clk 0:00:09.5]}
52... Bf6+ {[%clk 0:00:10]} 53. Kf8 {[%clk 0:00:10.4]} 53... Bg7# {[%clk
0:00:09.5]} 0-1

[Event "Early-Titled-Tuesday-Blitz-September-05-2023"]
[Site "Chess.com"]
[Date "2023.09.05"]
[Round "11"]
[White "AquivaRubinstein"]
[Black "Witik"]
[Result "0-1"]
[WhiteElo "2485"]
[BlackElo "2674"]
[TimeControl "180+1"]
[EndTime "10:06:53 PDT"]
[Termination "Witik won by resignation"]

1. d4 {[%clk 0:02:58.1]} 1... Nf6 {[%clk 0:03:00]} 2. c4 {[%clk 0:02:58.2]} 2...
e6 {[%clk 0:03:00.2]} 3. Nf3 {[%clk 0:02:58.3]} 3... Bb4+ {[%clk 0:03:00]} 4.
Nbd2 {[%clk 0:02:58.4]} 4... b6 {[%clk 0:02:57.1]} 5. g3 {[%clk 0:02:57.5]} 5...
Bb7 {[%clk 0:02:54.8]} 6. Bg2 {[%clk 0:02:57.7]} 6... O-O {[%clk 0:02:54.9]} 7.
O-O {[%clk 0:02:58]} 7... a5 {[%clk 0:02:53.4]} 8. a3 {[%clk 0:02:49.3]} 8...
Bxd2 {[%clk 0:02:52.9]} 9. Bxd2 {[%clk 0:02:34.8]} 9... d6 {[%clk 0:02:45]} 10.
b4 {[%clk 0:02:30.3]} 10... a4 {[%clk 0:02:40.4]} 11. c5 {[%clk 0:01:59.8]}
11... h6 {[%clk 0:02:35.7]} 12. Rc1 {[%clk 0:01:42.4]} 12... Be4 {[%clk
0:02:31]} 13. Ne1 {[%clk 0:01:31.5]} 13... Bxg2 {[%clk 0:02:29.8]} 14. Nxg2
{[%clk 0:01:32.4]} 14... Qd7 {[%clk 0:02:21.9]} 15. Qc2 {[%clk 0:01:30.8]} 15...
d5 {[%clk 0:01:14]} 16. c6 {[%clk 0:01:25.7]} 16... Qe7 {[%clk 0:01:09.1]} 17.
b5 {[%clk 0:01:13.2]} 17... Qxa3 {[%clk 0:00:56.4]} 18. Ra1 {[%clk 0:01:12.3]}
18... Qe7 {[%clk 0:00:51.7]} 19. Rxa4 {[%clk 0:01:12]} 19... Rxa4 {[%clk
0:00:49.6]} 20. Qxa4 {[%clk 0:01:12.9]} 20... Re8 {[%clk 0:00:47]} 21. Bb4
{[%clk 0:00:50.5]} 21... Qd8 {[%clk 0:00:46.7]} 22. Nf4 {[%clk 0:00:42.1]} 22...
Ne4 {[%clk 0:00:46.7]} 23. Nd3 {[%clk 0:00:40]} 23... Qf6 {[%clk 0:00:43.3]} 24.
Be1 {[%clk 0:00:26.3]} 24... g5 {[%clk 0:00:37]} 25. Qa7 {[%clk 0:00:22.3]}
25... Nd6 {[%clk 0:00:35.1]} 26. Qxc7 {[%clk 0:00:17.9]} 26... Nxb5 {[%clk
0:00:34.8]} 27. Qxb6 {[%clk 0:00:18.2]} 27... Nxd4 {[%clk 0:00:34.8]} 28. c7
{[%clk 0:00:14.4]} 28... Nxe2+ {[%clk 0:00:34.4]} 29. Kg2 {[%clk 0:00:14.9]}
29... Nd7 {[%clk 0:00:33.1]} 30. Qc6 {[%clk 0:00:12.4]} 30... Qf3+ {[%clk
0:00:28]} 31. Kxf3 {[%clk 0:00:07.8]} 31... Nd4+ {[%clk 0:00:27.9]} 32. Kg2
{[%clk 0:00:08.3]} 32... Nxc6 {[%clk 0:00:28.8]} 33. Bd2 {[%clk 0:00:03.4]}
33... Rc8 {[%clk 0:00:28.9]} 34. Rc1 {[%clk 0:00:03.6]} 34... Rxc7 {[%clk
0:00:29.5]} 35. Nb4 {[%clk 0:00:03.5]} 35... Nde5 {[%clk 0:00:29.1]} 36. Rc5
{[%clk 0:00:02]} 36... Nc4 {[%clk 0:00:26.6]} 37. Rxc6 {[%clk 0:00:01.8]} 37...
Rxc6 {[%clk 0:00:26.9]} 38. Nxc6 {[%clk 0:00:02.3]} 38... Nxd2 {[%clk
0:00:27.6]} 39. Kg1 {[%clk 0:00:02.2]} 39... Nf3+ {[%clk 0:00:26.3]} 40. Kg2
{[%clk 0:00:02.4]} 40... g4 {[%clk 0:00:26.6]} 41. h3 {[%clk 0:00:02.6]} 41...
h5 {[%clk 0:00:26.4]} 42. hxg4 {[%clk 0:00:03.1]} 42... hxg4 {[%clk 0:00:27.3]}
43. Kf1 {[%clk 0:00:02.4]} 43... f5 {[%clk 0:00:27]} 44. Ke2 {[%clk 0:00:02.7]}
44... Kf7 {[%clk 0:00:27]} 45. Ke3 {[%clk 0:00:03]} 45... Kf6 {[%clk 0:00:27.7]}
46. Nb4 {[%clk 0:00:03.3]} 46... d4+ {[%clk 0:00:26.7]} 47. Kd3 {[%clk
0:00:03.4]} 47... e5 {[%clk 0:00:27.2]} 48. Nd5+ {[%clk 0:00:03.3]} 48... Ke6
{[%clk 0:00:27.5]} 49. Nc7+ {[%clk 0:00:03.5]} 49... Kd6 {[%clk 0:00:27.9]} 50.
Ne8+ {[%clk 0:00:03.8]} 50... Kc5 {[%clk 0:00:27.7]} 51. Ng7 {[%clk 0:00:04]}
51... e4+ {[%clk 0:00:20]} 52. Ke2 {[%clk 0:00:04.5]} 52... d3+ {[%clk
0:00:19.3]} 53. Ke3 {[%clk 0:00:04.8]} 53... Nd4 {[%clk 0:00:19.9]} 54. Kd2
{[%clk 0:00:03.3]} 54... Kd5 {[%clk 0:00:19.2]} 55. Ke3 {[%clk 0:00:03.6]} 55...
Ke5 {[%clk 0:00:19.5]} 56. Ne8 {[%clk 0:00:03.9]} 56... Nc2+ {[%clk 0:00:14.8]}
57. Kd2 {[%clk 0:00:04.2]} 57... Na3 {[%clk 0:00:15.5]} 58. Nc7 {[%clk
0:00:04.4]} 58... Nc4+ {[%clk 0:00:15.6]} 59. Kc3 {[%clk 0:00:04.7]} 59... Nb6
{[%clk 0:00:14.1]} 60. Nb5 {[%clk 0:00:04.6]} 60... f4 {[%clk 0:00:12.8]} 61.
Kd2 {[%clk 0:00:04.1]} 61... Nc4+ {[%clk 0:00:11.4]} 62. Kd1 {[%clk 0:00:03.4]}
62... fxg3 {[%clk 0:00:11.3]} 63. fxg3 {[%clk 0:00:03.8]} 63... e3 {[%clk
0:00:11.9]} 64. Nc3 {[%clk 0:00:04.2]} 64... Kd4 {[%clk 0:00:11.7]} 65. Nb5+
{[%clk 0:00:04]} 65... Ke4 {[%clk 0:00:12.2]} 66. Nc3+ {[%clk 0:00:04.2]} 66...
Kf3 {[%clk 0:00:12.8]} 67. Nd5 {[%clk 0:00:04.3]} 67... Nb2+ {[%clk 0:00:12.1]}
68. Kc1 {[%clk 0:00:03.7]} 68... d2+ {[%clk 0:00:12.6]} 69. Kc2 {[%clk
0:00:03.8]} 69... d1=Q+ {[%clk 0:00:12.9]} 70. Kxb2 {[%clk 0:00:04]} 70... Qxd5
{[%clk 0:00:13.5]} 0-1